[Event "Czech Juniors Girls 2024"]
[Site "Jaromerice nad Rokytnou"]
[Date "2024.03.13"]
[Round "6.4"]
[White "Nagyova, Daniela"]
[Black "Jakubse, Tamae Severina"]
[Result "1-0"]
[ECO "C54"]
[WhiteElo "1927"]
[BlackElo "1861"]
[Annotator "RC"]
[PlyCount "143"]
[EventDate "2024.03.10"]
[EventType "tourn"]
[EventCountry "CZE"]
[SourceTitle "playchess.com"]
[Source "ChessBase"]
[SourceQuality "1"]
[WhiteTeam "Czech Republic"]
[BlackTeam "Czech Republic"]
[WhiteTeamCountry "CZE"]
[BlackTeamCountry "CZE"]
[TimeControl "40/5400+30:1800+30"]

1. e4 {[%emt 0:00:07]} e5 {[%emt 0:00:07]} 2. Nf3 {[%emt 0:00:18]} Nc6 {[%emt 0:00:05]} 3. Bc4 {[%emt 0:00:18]} Nf6 {[%emt 0:00:06]} 4. d3 {[%emt 0:00:37]} Bc5 {[%emt 0:00:18]} 5. c3 {[%emt 0:01:54]} d6 {[%emt 0:00:06]} 6. O-O {[%emt 0:00:41]} a5 {[%emt 0:00:17]} 7. Nbd2 {[%emt 0:02:57]} O-O {[%emt 0:00:38]} 8. h3 {[%emt 0:01:49]} Ba7 {[%emt 0:01:09]} 9. Re1 {[%emt 0:02:14]} h6 {[%emt 0:04:24]} 10. Nf1 {[%emt 0:02:15]} Be6 {[%emt 0:00:15]} 11. Bb3 {[%emt 0:03:58]} Bxb3 {[%emt 0:02:43]} 12. Qxb3 {[%emt 0:02:32]} Qd7 {[%emt 0:01:02]} 13. Bd2 {[%emt 0:04:52]} Rfe8 {[%emt 0:02:32]} 14. Ng3 {[%emt 0:05:36]} d5 {[%emt 0:04:41]} 15. Rad1 {[%emt 0:04:03]} Rad8 {[%emt 0:09:19]} 16. Bc1 {[%emt 0:06:23]} d4 {[%emt 0:06:51]} 17. Qb5 {[%emt 0:07:53]} b6 18. Qxb6 {[%emt 0:00:31]} Rb8 {[%emt 0:18:22]} 19. Qa6 {[%emt 0:00:36]} Rb6 {[%emt 0:01:08]} 20. Qc4 {[%emt 0:01:17]} Reb8 {[%emt 0:01:48]} 21. Nf5 {[%emt 0:10:57]} Rb5 {[%emt 0:08:13]} 22. Qa4 {[%emt 0:06:07]} Rc5 {[%emt 0:10:06]} 23. Qa3 {[%emt 0:07:02]} Ne8 {[%emt 0:06:07]} 24. cxd4 {[%emt 0:04:39]} exd4 {[%emt 0:01:49]} 25. Bf4 {[%emt 0:05:39]} Rc2 {[%emt 0:02:37]} 26. Rb1 {[%emt 0:07:10]} Rb5 {[%emt 0:14:07]} 27. Rec1 {[%emt 0:05:28]} Nb4 {[%emt 0:03:34]} 28. Rxc2 {[%emt 0:01:09]} Nxc2 {[%emt 0:00:07]} 29. Qa4 {[%emt 0:01:18]} Nb4 {[%emt 0:00:39]} 30. N3xd4 {[%emt 0:02:26]} Bxd4 {[%emt 0:01:15]} 31. Nxd4 {[%emt 0:00:15]} Rd5 {[%emt 0:00:07]} 32. Qxd7 {[%emt 0:00:38]} Rxd7 {[%emt 0:00:01]} 33. Nb5 {[%emt 0:01:24]} c6 {[%emt 0:00:23]} 34. Na3 {[%emt 0:00:48]} Rxd3 {[%emt 0:00:29]} 35. Rc1 {[%emt 0:00:50]} Rd4 {[%emt 0:01:25]} 36. Rc4 {[%emt 0:00:27]} Rd1+ {[%emt 0:00:26]} 37. Kh2 {[%emt 0:00:05]} Nf6 {[%emt 0:00:36]} 38. Be5 {[%emt 0:01:01]} Nd7 {[%emt 0:00:30]} 39. Bc3 {[%emt 0:00:28]} Nb6 {[%emt 0:00:58]} 40. Rc5 {[%emt 0:00:44]} Na4 {[%emt 0:00:28]} 41. Rxa5 {[%emt 0:30:39]} Nxc3 {[%emt 0:30:20]} 42. bxc3 {[%emt 0:00:29]} Nxa2 {[%emt 0:00:00]} 43. Rc5 {[%emt 0:00:00]} Rc1 {[%emt 0:00:00]} 44. Rxc6 {[%emt 0:00:00]} Rxc3 {[%emt 0:00:00]} 45. Rxc3 {[%emt 0:00:00]} Nxc3 {[%emt 0:00:00]} 46. f3 {[%emt 0:00:00]} Ne2 {[%emt 0:00:00]} 47. g3 {[%emt 0:00:00]} Kf8 {[%emt 0:00:00]} 48. Nb5 {[%emt 0:00:00]} Nc1 {[%emt 0:00:00]} 49. Kg2 {[%emt 0:00:00]} Nd3 {[%emt 0:00:00]} 50. Kf1 {[%emt 0:00:00]} Ke7 {[%emt 0:00:00]} 51. Ke2 {[%emt 0:00:00]} Ne5 {[%emt 0:00:00]} 52. Ke3 {[%emt 0:00:00]} Nc6 {[%emt 0:00:00]} 53. Nd4 {[%emt 0:00:00]} Ne5 {[%emt 0:00:00]} 54. f4 {[%emt 0:00:00]} Nc4+ {[%emt 0:00:00]} 55. Kd3 {[%emt 0:00:00]} Nd6 {[%emt 0:00:00]} 56. Nf5+ {[%emt 0:00:00]} Nxf5 {[%emt 0:00:00]} 57. exf5 {[%emt 0:00:00]} Kf6 {[%emt 0:00:00]} 58. Ke4 {[%emt 0:00:00]} Ke7 {[%emt 0:00:00]} 59. Ke5 {[%emt 0:00:58]} Kd7 {[%emt 0:00:00]} 60. g4 {[%emt 0:03:47]} f6+ {[%emt 0:00:00]} 61. Kd5 {[%emt 0:00:07]} Ke7 {[%emt 0:00:00]} 62. Kc6 {[%emt 0:02:10]} Kf7 {[%emt 0:00:00]} 63. Kd7 {[%emt 0:00:40]} Kf8 {[%emt 0:00:27]} 64. Ke6 {[%emt 0:01:05]} Kg8 {[%emt 0:00:09]} 65. Ke7 {[%emt 0:00:49]} Kh7 {[%emt 0:01:12]} 66. Kf7 {[%emt 0:00:48]} Kh8 {[%emt 0:00:23]} 67. h4 {[%emt 0:00:26]} Kh7 {[%emt 0:00:10]} 68. g5 {[%emt 0:00:43]} fxg5 {[%emt 0:00:19]} 69. fxg5 {[%emt 0:00:32]} hxg5 {[%emt 0:01:53]} 70. hxg5 {[%emt 0:00:06]} Kh8 {[%emt 0:00:25]} 71. f6 {[%emt 0:00:20]} gxf6 {[%emt 0:00:06]} 72. g6 {[%emt 0:00:12]} 1-0

[Event "Czech Juniors Girls 2024"]
[Site "Jaromerice nad Rokytnou"]
[Date "2024.03.13"]
[Round "6.5"]
[White "Markina, Sofiia"]
[Black "Sulcova, Tereza Radmila"]
[Result "0-1"]
[ECO "B06"]
[WhiteElo "1857"]
[BlackElo "1835"]
[Annotator "NA RC"]
[PlyCount "72"]
[EventDate "2024.03.10"]
[EventType "tourn"]
[EventCountry "CZE"]
[SourceTitle "playchess.com"]
[Source "ChessBase"]
[SourceQuality "1"]
[WhiteTeam "Czech Republic"]
[BlackTeam "Czech Republic"]
[WhiteTeamCountry "CZE"]
[BlackTeamCountry "CZE"]
[TimeControl "40/5400+30:1800+30"]

1. e4 {[%emt 0:00:02]} g6 {[%emt 0:00:11]} 2. d4 {[%emt 0:00:08]} Nf6 {[%emt 0:00:12]} 3. Nc3 {[%emt 0:00:17]} d5 {[%emt 0:00:10]} 4. e5 {[%emt 0:02:47]} Nh5 {[%emt 0:00:11]} 5. Be2 {[%emt 0:03:36]} Ng7 {[%emt 0:00:13]} 6. Bh6 {[%emt 0:03:21]} c6 {[%emt 0:01:42] B06: Modern Defence.} 7. Nf3 {[%emt 0:04:19]} (7. Qd2 $16) 7... Nd7 {[%emt 0:08:11]} 8. Bxg7 {[%emt 0:10:37]} Bxg7 {[%emt 0:00:10]} 9. e6 {[%emt 0:00:04]} fxe6 {[%emt 0:00:10]} 10. Ng5 {[%emt 0:00:38]} Nf6 {[%emt 0:00:45]} 11. Bg4 {[%emt 0:03:03]} Nxg4 {[%emt 0:04:46]} 12. Qxg4 {[%emt 0:00:07]} e5 {[%emt 0:00:48]} 13. Qg3 {[%emt 0:01:49]} exd4 {[%emt 0:04:42]} 14. Nd1 {[%emt 0:07:21]} Qd6 {[%emt 0:12:32]} 15. Qxd6 {[%emt 0:03:02]} exd6 {[%emt 0:00:04]} 16. O-O {[%emt 0:01:11]} Bf5 {[%emt 0:03:55]} 17. c3 {[%emt 0:04:00]} dxc3 {[%emt 0:09:05]} 18. Nxc3 {[%emt 0:00:37]} Kd7 {[%emt 0:01:11]} 19. h3 {[%emt 0:08:08]} h6 {[%emt 0:01:48]} 20. Nf3 {[%emt 0:00:12]} Rhf8 {[%emt 0:00:36]} 21. Nh4 {[%emt 0:00:31]} g5 {[%emt 0:03:02]} 22. Nxf5 {[%emt 0:00:10]} Rxf5 {[%emt 0:00:02]} 23. Rae1 {[%emt 0:01:04]} Re8 {[%emt 0:04:05]} 24. Rxe8 {[%emt 0:00:54]} Kxe8 {[%emt 0:00:05]} 25. Re1+ {[%emt 0:00:39]} Re5 {[%emt 0:00:48]} 26. Rxe5+ {[%emt 0:01:57]} dxe5 {[%emt 0:00:26]} 27. Kf1 {[%emt 0:00:15]} Kd7 {[%emt 0:01:53]} 28. f3 {[%emt 0:00:38]} e4 {[%emt 0:02:10]} 29. Na4 {[%emt 0:01:44]} exf3 {[%emt 0:00:51]} 30. gxf3 $19 {[%emt 0:00:45]} b6 {[%emt 0:01:20]} 31. Nc3 {[%emt 0:00:19]} Kd6 {[%emt 0:02:27]} 32. Ke2 {[%emt 0:00:20]} a6 {[%emt 0:00:37]} 33. Kd3 {[%emt 0:02:06]} c5 {[%emt 0:00:57]} 34. a3 {[%emt 0:02:14]} b5 {[%emt 0:00:55]} 35. Kc2 {[%emt 0:01:38]} Bxc3 {[%emt 0:00:54]} 36. Kxc3 {[%emt 0:00:58]} Ke5 {[%emt 0:00:09]} 0-1

[Event "Czech Juniors Girls 2024"]
[Site "Jaromerice nad Rokytnou"]
[Date "2024.03.14"]
[Round "7.1"]
[White "Sulcova, Tereza Radmila"]
[Black "Trasakova, Adela"]
[Result "0-1"]
[ECO "A03"]
[WhiteElo "1835"]
[BlackElo "1935"]
[Annotator "RC"]
[PlyCount "174"]
[EventDate "2024.03.10"]
[EventType "tourn"]
[EventCountry "CZE"]
[SourceTitle "playchess.com"]
[Source "ChessBase"]
[SourceQuality "1"]
[WhiteTeam "Czech Republic"]
[BlackTeam "Czech Republic"]
[WhiteTeamCountry "CZE"]
[BlackTeamCountry "CZE"]
[TimeControl "40/5400+30:1800+30"]

1. f4 {[%emt 0:00:04]} d5 {[%emt 0:00:03]} 2. Nf3 {[%emt 0:00:17]} Nf6 {[%emt 0:00:04]} 3. d3 {[%emt 0:00:26]} g6 {[%emt 0:00:13]} 4. g3 {[%emt 0:00:43]} Bg7 {[%emt 0:00:21]} 5. Bg2 {[%emt 0:00:21]} O-O {[%emt 0:00:31]} 6. O-O {[%emt 0:00:18]} b6 {[%emt 0:00:37]} 7. Qe1 {[%emt 0:03:01]} Bb7 {[%emt 0:01:03]} 8. h3 {[%emt 0:00:51]} Re8 {[%emt 0:09:44]} 9. g4 {[%emt 0:07:29]} Nbd7 {[%emt 0:02:52]} 10. f5 {[%emt 0:12:47]} e5 {[%emt 0:10:47]} 11. g5 {[%emt 0:09:15]} Nh5 {[%emt 0:11:56]} 12. f6 {[%emt 0:07:32]} Bf8 {[%emt 0:01:06]} 13. e3 {[%emt 0:00:51]} e4 {[%emt 0:03:53]} 14. dxe4 {[%emt 0:04:20]} dxe4 {[%emt 0:07:01]} 15. Nh2 {[%emt 0:13:12]} Bd6 {[%emt 0:08:23]} 16. Ng4 {[%emt 0:00:47]} Ba6 {[%emt 0:01:37]} 17. Nh6+ {[%emt 0:04:13]} Kf8 {[%emt 0:00:02]} 18. Rf2 {[%emt 0:06:47]} Bg3 {[%emt 0:02:55]} 19. Qb4+ {[%emt 0:02:07]} c5 {[%emt 0:00:10]} 20. Qa3 {[%emt 0:00:17]} Bxf2+ {[%emt 0:08:44]} 21. Kxf2 {[%emt 0:00:06]} Bb7 {[%emt 0:00:59]} 22. Nc3 {[%emt 0:01:44]} Qc7 {[%emt 0:02:09]} 23. Ne2 {[%emt 0:00:38]} Ne5 {[%emt 0:03:10]} 24. b4 {[%emt 0:01:32]} Nc4 {[%emt 0:11:03]} 25. Qb3 {[%emt 0:01:41]} Bd5 {[%emt 0:00:36]} 26. bxc5 {[%emt 0:04:30]} bxc5 {[%emt 0:02:03]} 27. Qc3 {[%emt 0:01:25]} Re6 {[%emt 0:03:36]} 28. a4 {[%emt 0:03:51]} Rb8 {[%emt 0:01:40]} 29. Ng4 {[%emt 0:04:13]} Qb6 {[%emt 0:01:55]} 30. a5 {[%emt 0:01:56]} Qc7 {[%emt 0:01:38]} 31. Qe1 {[%emt 0:02:01]} Ra6 {[%emt 0:01:17]} 32. Bd2 {[%emt 0:00:56]} Rb2 {[%emt 0:01:19]} 33. Qc1 {[%emt 0:00:41]} Qb7 {[%emt 0:01:11]} 34. Bc3 {[%emt 0:01:50]} Rb5 {[%emt 0:00:24]} 35. Qe1 {[%emt 0:02:28]} Qc7 {[%emt 0:00:38]} 36. Bf1 {[%emt 0:00:59]} Qc6 {[%emt 0:01:32]} 37. Nc1 {[%emt 0:00:31]} Qd6 {[%emt 0:00:34]} 38. Kg2 {[%emt 0:00:23]} Be6 {[%emt 0:00:32]} 39. Be2 {[%emt 0:01:09]} Qd7 {[%emt 0:00:50]} 40. Nb3 {[%emt 0:00:41]} Qc7 {[%emt 0:00:40]} 41. Ra4 {[%emt 0:11:36]} Bxg4 {[%emt 0:14:32]} 42. Bxg4 {[%emt 0:00:33]} Nd6 {[%emt 0:01:00]} 43. h4 {[%emt 0:03:13]} c4 {[%emt 0:04:17]} 44. Nd4 {[%emt 0:01:26]} Rb8 {[%emt 0:01:01]} 45. Qd1 {[%emt 0:05:10]} Nxf6 {[%emt 0:07:24]} 46. gxf6 {[%emt 0:01:04]} Ne8 {[%emt 0:00:05]} 47. Be2 {[%emt 0:01:49]} Rxf6 {[%emt 0:01:41]} 48. Rxc4 {[%emt 0:01:05]} Qd7 {[%emt 0:00:33]} 49. Qe1 {[%emt 0:03:43]} Kg8 {[%emt 0:02:04]} 50. Nb3 {[%emt 0:00:21]} Rc6 {[%emt 0:00:48]} 51. Rxc6 {[%emt 0:01:53]} Qxc6 {[%emt 0:00:02]} 52. Be5 {[%emt 0:00:24]} Rd8 {[%emt 0:00:58]} 53. Nd4 {[%emt 0:00:18]} Qd5 {[%emt 0:00:20]} 54. Bf4 {[%emt 0:00:51]} Nd6 {[%emt 0:00:40]} 55. Bxd6 {[%emt 0:02:43]} Qxd6 {[%emt 0:00:32]} 56. Qg3 {[%emt 0:00:26]} Qc5 {[%emt 0:00:47]} 57. a6 {[%emt 0:00:53]} Qc3 {[%emt 0:00:37]} 58. Kf2 {[%emt 0:00:39]} Qa3 {[%emt 0:01:46]} 59. Qc7 {[%emt 0:00:35]} Qd6 {[%emt 0:00:29]} 60. Qxd6 {[%emt 0:00:26]} Rxd6 {[%emt 0:00:01]} 61. Nb5 {[%emt 0:00:01]} Rxa6 {[%emt 0:00:19]} 62. c4 {[%emt 0:00:37]} Ra1 {[%emt 0:00:55]} 63. c5 {[%emt 0:01:34]} Rc1 {[%emt 0:00:16]} 64. Nxa7 {[%emt 0:00:27]} Rxc5 {[%emt 0:00:04]} 65. Nb5 {[%emt 0:00:09]} f5 {[%emt 0:00:50]} 66. Nd4 {[%emt 0:01:22]} Kf7 {[%emt 0:00:15]} 67. Bd1 {[%emt 0:00:35]} Kf6 {[%emt 0:00:22]} 68. Ne2 {[%emt 0:00:37]} h6 {[%emt 0:00:41]} 69. Ng3 {[%emt 0:00:56]} g5 {[%emt 0:00:30]} 70. hxg5+ {[%emt 0:00:13]} hxg5 {[%emt 0:00:38]} 71. Ke1 {[%emt 0:00:40]} Ke5 {[%emt 0:00:20]} 72. Nf1 {[%emt 0:00:40]} f4 {[%emt 0:00:16]} 73. exf4+ {[%emt 0:00:06]} gxf4 {[%emt 0:00:06]} 74. Nd2 {[%emt 0:00:12]} Rc3 {[%emt 0:01:42]} 75. Nb3 {[%emt 0:00:48]} Rc8 {[%emt 0:00:46]} 76. Na1 {[%emt 0:00:43]} f3 {[%emt 0:00:24]} 77. Nc2 {[%emt 0:00:10]} Kf4 {[%emt 0:00:14]} 78. Nb4 {[%emt 0:00:42]} Rd8 {[%emt 0:00:30]} 79. Bc2 {[%emt 0:00:16]} Ke3 {[%emt 0:00:53]} 80. Bb3 {[%emt 0:00:49]} Kf4 {[%emt 0:00:31]} 81. Nd5+ {[%emt 0:00:16]} Kg3 {[%emt 0:00:20]} 82. Nf6 {[%emt 0:00:12]} Rd4 {[%emt 0:00:37]} 83. Nh5+ {[%emt 0:00:45]} Kh4 {[%emt 0:00:25]} 84. Nf4 {[%emt 0:00:19]} Kg4 {[%emt 0:00:35]} 85. Ne6 {[%emt 0:00:12]} Rb4 {[%emt 0:00:19]} 86. Bc2 {[%emt 0:00:30]} e3 {[%emt 0:00:24]} 87. Nc5 {[%emt 0:00:57]} Rc4 {[%emt 0:00:39]} 0-1

[Event "Czech Juniors Girls 2024"]
[Site "Jaromerice nad Rokytnou"]
[Date "2024.03.14"]
[Round "7.2"]
[White "Jakubse, Tamae Severina"]
[Black "Markina, Sofiia"]
[Result "1-0"]
[ECO "B22"]
[WhiteElo "1861"]
[BlackElo "1857"]
[Annotator "NA RC"]
[PlyCount "87"]
[EventDate "2024.03.10"]
[EventType "tourn"]
[EventCountry "CZE"]
[SourceTitle "playchess.com"]
[Source "ChessBase"]
[SourceQuality "1"]
[WhiteTeam "Czech Republic"]
[BlackTeam "Czech Republic"]
[WhiteTeamCountry "CZE"]
[BlackTeamCountry "CZE"]
[TimeControl "40/5400+30:1800+30"]

1. e4 {[%emt 0:00:02]} c5 {[%emt 0:00:04]} 2. c3 {[%emt 0:00:05]} d5 {[%emt 0:00:09]} 3. exd5 {[%emt 0:00:06]} Qxd5 {[%emt 0:00:04]} 4. d4 {[%emt 0:00:06]} g6 {[%emt 0:00:23]} 5. Nf3 {[%emt 0:00:23]} Bg7 {[%emt 0:00:09]} 6. Na3 {[%emt 0:00:17]} Nf6 {[%emt 0:00:55]} 7. Be3 {[%emt 0:09:37] B22: Sicilian: 2 c3.} cxd4 {[%emt 0:04:33]} 8. Bc4 {[%emt 0:05:46]} Qd8 {[%emt 0:06:48]} 9. Nxd4 {[%emt 0:02:06]} O-O {[%emt 0:00:36]} 10. h3 {[%emt 0:04:26]} a6 {[%emt 0:01:04]} 11. O-O {[%emt 0:02:08]} Bd7 {[%emt 0:08:10]} 12. Qe2 {[%emt 0:06:59]} Nc6 {[%emt 0:00:35]} 13. Nxc6 {[%emt 0:09:20]} Bxc6 {[%emt 0:00:06]} 14. Nc2 {[%emt 0:01:01]} b5 {[%emt 0:02:05]} 15. Bb3 {[%emt 0:00:58]} e5 {[%emt 0:11:03]} 16. Nb4 {[%emt 0:05:52]} Bb7 {[%emt 0:04:58]} 17. a4 {[%emt 0:03:06]} a5 {[%emt 0:06:10]} 18. Nd3 {[%emt 0:02:51]} bxa4 {[%emt 0:02:29]} 19. Rxa4 {[%emt 0:01:12]} Ba6 {[%emt 0:02:11]} 20. c4 {[%emt 0:00:08]} Nd7 {[%emt 0:09:46]} 21. Nc5 {[%emt 0:03:55]} Nxc5 {[%emt 0:01:25]} 22. Bxc5 {[%emt 0:00:03]} Re8 {[%emt 0:00:19]} 23. Rd1 {[%emt 0:01:02]} Qg5 {[%emt 0:00:27]} ({Vorzuziehen ist} 23... Qc7 $14 24. Bd6 Qc6) 24. Be3 {[%emt 0:03:26]} Qe7 {[%emt 0:06:43]} 25. Qc2 {[%emt 0:01:29]} Bb7 {[%emt 0:03:46]} 26. c5 {[%emt 0:02:27]} Bc6 {[%emt 0:03:51]} 27. Raa1 {[%emt 0:00:53]} Qb7 {[%emt 0:01:50]} 28. Ba4 {[%emt 0:08:17]} Bxa4 {[%emt 0:00:43]} 29. Rxa4 {[%emt 0:01:06]} Qc7 {[%emt 0:05:38]} 30. Rda1 {[%emt 0:06:23]} e4 {[%emt 0:02:27]} 31. Rxe4 {[%emt 0:03:39]} Rxe4 {[%emt 0:01:42]} 32. Qxe4 {[%emt 0:00:02]} Rd8 {[%emt 0:01:34]} (32... Rc8 $16 33. Rb1 Qe5 34. Qxe5 Bxe5) 33. Rb1 {[%emt 0:03:45]} Kh8 {[%emt 0:08:39]} 34. g3 {[%emt 0:02:32]} Qc8 {[%emt 0:01:03]} 35. Kg2 {[%emt 0:00:34]} Re8 {[%emt 0:02:17]} 36. Qa4 {[%emt 0:02:53]} Qa8+ {[%emt 0:01:14]} 37. Kh2 {[%emt 0:00:42]} Qd8 {[%emt 0:01:25]} 38. Rd1 {[%emt 0:00:46]} Qa8 {[%emt 0:00:58]} 39. Qd7 {[%emt 0:04:50]} Kg8 {[%emt 0:00:39]} 40. c6 {[%emt 0:01:35]} Bxb2 {[%emt 0:00:38]} 41. c7 {[%emt 0:31:56]} Bf6 {[%emt 0:30:51]} 42. Bd4 $18 {[%emt 0:00:00]} Bxd4 {[%emt 0:00:00]} 43. Rxd4 {[%emt 0:00:00]} Kg7 {[%emt 0:00:00]} 44. Rf4 {[%emt 0:00:00]} 1-0

[Event "Czech Juniors Girls 2024"]
[Site "Jaromerice nad Rokytnou"]
[Date "2024.03.14"]
[Round "7.3"]
[White "Nespora, Tatana"]
[Black "Nagyova, Daniela"]
[Result "0-1"]
[ECO "C30"]
[WhiteElo "1839"]
[BlackElo "1927"]
[Annotator "ChessBase"]
[PlyCount "116"]
[EventDate "2024.03.10"]
[EventType "tourn"]
[EventCountry "CZE"]
[SourceTitle "playchess.com"]
[Source "ChessBase"]
[SourceQuality "1"]
[WhiteTeam "Czech Republic"]
[BlackTeam "Czech Republic"]
[WhiteTeamCountry "CZE"]
[BlackTeamCountry "CZE"]
[TimeControl "40/5400+30:1800+30"]

1. e4 {[%emt 0:00:08]} e5 {[%emt 0:00:10]} 2. f4 {[%emt 0:00:12]} Bc5 {[%emt 0:00:18]} 3. Nf3 {[%emt 0:00:19]} d6 {[%emt 0:00:36]} 4. c3 {[%emt 0:00:15]} Nf6 {[%emt 0:00:51]} 5. d4 {[%emt 0:00:32]} exd4 {[%emt 0:00:16]} 6. cxd4 {[%emt 0:00:26]} Bb6 {[%emt 0:00:24]} 7. Bd3 {[%emt 0:04:09]} O-O {[%emt 0:02:11]} 8. O-O {[%emt 0:03:16]} Re8 {[%emt 0:02:05]} 9. Nc3 {[%emt 0:01:44]} Nc6 {[%emt 0:01:10]} 10. Bc2 {[%emt 0:01:24]} Bg4 {[%emt 0:02:47]} 11. Be3 {[%emt 0:02:34]} Bf5 {[%emt 0:03:28]} 12. e5 {[%emt 0:12:03]} Bxc2 {[%emt 0:04:18]} 13. Qxc2 {[%emt 0:00:09]} Ng4 {[%emt 0:10:09]} 14. Ng5 {[%emt 0:20:04]} g6 {[%emt 0:02:26]} 15. Qb3 {[%emt 0:02:07]} Rf8 {[%emt 0:14:22]} 16. Nd5 {[%emt 0:05:50]} Nxe3 {[%emt 0:04:08]} 17. Nxb6 {[%emt 0:01:10]} Nxf1 {[%emt 0:02:11]} 18. Nxa8 {[%emt 0:02:00]} Qxa8 {[%emt 0:05:14]} 19. Qh3 {[%emt 0:02:54]} h5 {[%emt 0:01:53]} 20. Rxf1 {[%emt 0:00:42]} Nxd4 {[%emt 0:08:59]} 21. Qd3 {[%emt 0:01:46]} dxe5 {[%emt 0:03:45]} 22. fxe5 {[%emt 0:01:52]} Qd8 {[%emt 0:04:04]} 23. Ne4 {[%emt 0:02:04]} Nc6 {[%emt 0:05:40]} 24. Nf6+ {[%emt 0:09:16]} Kg7 {[%emt 0:01:43]} 25. Qe3 {[%emt 0:06:14]} Qd4 {[%emt 0:04:14]} 26. Qxd4 {[%emt 0:00:08]} Nxd4 {[%emt 0:00:04]} 27. Rd1 {[%emt 0:00:09]} Nc6 {[%emt 0:00:57]} 28. Rd5 {[%emt 0:00:56]} Nxe5 {[%emt 0:02:12]} 29. Nxh5+ {[%emt 0:00:15]} gxh5 {[%emt 0:00:14]} 30. Rxe5 {[%emt 0:00:10]} Rd8 {[%emt 0:00:33]} 31. Rxh5 {[%emt 0:01:47]} Rd1+ {[%emt 0:01:14]} 32. Kf2 {[%emt 0:00:10]} Rd2+ {[%emt 0:00:05]} 33. Kf3 {[%emt 0:00:29]} Rxb2 {[%emt 0:00:29]} 34. a4 {[%emt 0:00:48]} Rb3+ {[%emt 0:02:10]} 35. Kf2 {[%emt 0:00:34]} Rb4 {[%emt 0:03:04]} 36. a5 {[%emt 0:00:46]} b6 {[%emt 0:01:49]} 37. Kf3 {[%emt 0:02:28]} Ra4 {[%emt 0:03:16]} 38. axb6 {[%emt 0:00:17]} cxb6 {[%emt 0:01:06]} 39. Rb5 {[%emt 0:00:14]} Kf6 {[%emt 0:01:19]} 40. g4 {[%emt 0:02:10]} Ra5 {[%emt 0:02:05]} 41. Rb3 {[%emt 0:33:27]} b5 {[%emt 0:06:29]} 42. h3 {[%emt 0:00:00]} a6 {[%emt 0:03:52]} 43. Ke4 {[%emt 0:00:00]} Ra4+ {[%emt 0:01:57]} 44. Kd3 {[%emt 0:00:00]} b4 {[%emt 0:03:05]} 45. Kc2 {[%emt 0:00:00]} a5 {[%emt 0:06:13]} 46. h4 {[%emt 0:00:00]} Ra2+ {[%emt 0:01:38]} 47. Kb1 {[%emt 0:00:00]} Rh2 {[%emt 0:03:47]} 48. Rf3+ {[%emt 0:00:00]} Kg6 {[%emt 0:00:14]} 49. h5+ {[%emt 0:00:00]} Kg5 {[%emt 0:01:05]} 50. Rxf7 {[%emt 0:00:00]} Kxg4 {[%emt 0:00:27]} 51. Ra7 {[%emt 0:00:00]} Rxh5 {[%emt 0:00:22]} 52. Kb2 {[%emt 0:00:00]} Kf4 {[%emt 0:01:54]} 53. Kb3 {[%emt 0:00:00]} Rc5 {[%emt 0:03:26]} 54. Re7 {[%emt 0:00:00]} Rc3+ {[%emt 0:00:33]} 55. Ka4 {[%emt 0:00:00]} Ra3+ {[%emt 0:00:44]} 56. Kb5 {[%emt 0:00:00]} b3 {[%emt 0:01:05]} 57. Re1 {[%emt 0:00:00]} b2 {[%emt 0:01:12]} 58. Rb1 {[%emt 0:00:00]} Ra2 {[%emt 0:00:06]} 0-1

[Event "Czech Juniors Girls 2024"]
[Site "Jaromerice nad Rokytnou"]
[Date "2024.03.14"]
[Round "7.4"]
[White "Zelbova, Lada"]
[Black "Fizerova, Lucie"]
[Result "1/2-1/2"]
[ECO "B51"]
[WhiteElo "1954"]
[BlackElo "1886"]
[Annotator "RC"]
[PlyCount "115"]
[EventDate "2024.03.10"]
[EventType "tourn"]
[EventCountry "CZE"]
[SourceTitle "playchess.com"]
[Source "ChessBase"]
[SourceQuality "1"]
[WhiteTeam "Czech Republic"]
[BlackTeam "Czech Republic"]
[WhiteTeamCountry "CZE"]
[BlackTeamCountry "CZE"]
[TimeControl "40/5400+30:1800+30"]

1. e4 {[%emt 0:00:04]} c5 {[%emt 0:00:18]} 2. Nf3 {[%emt 0:00:31]} d6 {[%emt 0:00:16]} 3. Bb5+ {[%emt 0:00:10]} Nd7 {[%emt 0:01:04]} 4. O-O {[%emt 0:00:46]} e6 {[%emt 0:02:22]} 5. Re1 {[%emt 0:00:51]} Be7 {[%emt 0:01:19]} 6. c3 {[%emt 0:00:49]} Ngf6 {[%emt 0:03:41]} 7. d4 {[%emt 0:00:57]} O-O {[%emt 0:03:07]} 8. e5 {[%emt 0:06:12]} dxe5 {[%emt 0:01:40]} 9. dxe5 {[%emt 0:01:26]} Nd5 {[%emt 0:01:30]} 10. Nbd2 {[%emt 0:06:08]} Qc7 {[%emt 0:04:01]} 11. Bd3 {[%emt 0:16:04]} Rd8 {[%emt 0:05:05]} 12. Qc2 {[%emt 0:03:09]} Nf8 {[%emt 0:01:41]} 13. a3 {[%emt 0:06:09]} Rb8 {[%emt 0:06:34]} 14. c4 {[%emt 0:05:16]} Nf4 {[%emt 0:01:59]} 15. Bf1 {[%emt 0:00:18]} b6 {[%emt 0:06:02]} 16. Ne4 {[%emt 0:04:37]} N4g6 {[%emt 0:00:50]} 17. Nc3 {[%emt 0:01:34]} a6 {[%emt 0:02:08]} 18. Bd3 {[%emt 0:01:47]} Bb7 {[%emt 0:03:58]} 19. Be4 {[%emt 0:02:25]} Bxe4 {[%emt 0:07:07]} 20. Qxe4 {[%emt 0:01:16]} b5 {[%emt 0:04:07]} 21. Be3 {[%emt 0:03:31]} Nd7 {[%emt 0:03:00]} 22. h4 {[%emt 0:12:12]} Ndxe5 {[%emt 0:06:32]} 23. Nxe5 {[%emt 0:03:02]} Qxe5 {[%emt 0:01:58]} 24. Qxe5 {[%emt 0:00:50]} Nxe5 {[%emt 0:00:05]} 25. Bf4 {[%emt 0:01:05]} Nd3 {[%emt 0:01:06]} 26. Bxb8 {[%emt 0:00:48]} Nxe1 {[%emt 0:00:21]} 27. Bc7 {[%emt 0:01:00]} Rd7 {[%emt 0:00:56]} 28. cxb5 {[%emt 0:03:12]} Rxc7 {[%emt 0:05:55]} 29. Rxe1 {[%emt 0:00:51]} axb5 {[%emt 0:00:14]} 30. Nxb5 {[%emt 0:02:34]} Rb7 {[%emt 0:05:51]} 31. a4 {[%emt 0:00:10]} Bxh4 {[%emt 0:00:21]} 32. Rc1 {[%emt 0:00:35]} Be7 {[%emt 0:01:17]} 33. Kf1 {[%emt 0:03:02]} h5 {[%emt 0:05:15]} 34. Ke2 {[%emt 0:01:00]} Rb8 {[%emt 0:03:07]} 35. Ra1 {[%emt 0:03:19]} Bf6 {[%emt 0:04:21]} 36. Kd3 {[%emt 0:03:03]} Bxb2 {[%emt 0:04:03]} 37. Ra2 {[%emt 0:00:12]} Bf6 {[%emt 0:01:31]} 38. Kc4 {[%emt 0:01:20]} Bd8 {[%emt 0:01:20]} 39. a5 {[%emt 0:00:58]} Ra8 {[%emt 0:03:12]} 40. a6 {[%emt 0:00:20]} Bb6 {[%emt 0:00:28]} 41. Nd6 {[%emt 0:21:38]} Ba7 {[%emt 0:09:11]} 42. Rb2 {[%emt 0:03:20]} g5 {[%emt 0:04:45]} 43. Rb7 {[%emt 0:01:30]} Bb8 {[%emt 0:02:59]} 44. Rb6 {[%emt 0:00:32]} h4 {[%emt 0:03:45]} 45. Ne4 {[%emt 0:00:41]} Bf4 {[%emt 0:06:59]} 46. Nf6+ {[%emt 0:01:12]} Kg7 {[%emt 0:01:20]} 47. Nh5+ {[%emt 0:02:59]} Kg6 {[%emt 0:01:19]} 48. Nxf4+ {[%emt 0:00:37]} gxf4 {[%emt 0:00:07]} 49. f3 {[%emt 0:00:25]} Kg5 {[%emt 0:01:45]} 50. Kxc5 {[%emt 0:03:10]} h3 {[%emt 0:00:41]} 51. gxh3 {[%emt 0:00:30]} Kh4 {[%emt 0:00:15]} 52. Kc6 {[%emt 0:00:37]} Ra7 {[%emt 0:02:05]} 53. Rb4 {[%emt 0:02:45]} Rxa6+ {[%emt 0:00:33]} 54. Kb7 {[%emt 0:00:14]} Ra5 {[%emt 0:00:33]} 55. Rxf4+ {[%emt 0:00:21]} Kxh3 {[%emt 0:00:07]} 56. Rxf7 {[%emt 0:00:11]} Rf5 {[%emt 0:00:31]} 57. Re7 {[%emt 0:00:31]} e5 {[%emt 0:00:31]} 58. Kc6 {[%emt 0:00:22]} 1/2-1/2